bitfinex/quotes_BTCUSD_20250206
["timestamp","ask_amount","ask_price","bid_price","bid_amount"]
[1738871160363,0.33627965,96107.0,96106.0,5.22558124]
[1738871161189,0.38127965,96107.0,96106.0,5.22558124]
[1738871165381,0.38227965,96107.0,96106.0,5.20658124]
[1738871165778,0.38127965,96107.0,96106.0,5.20658124]
[1738871166006,0.38527965,96107.0,96106.0,5.20658124]
[1738871166218,0.38727965,96107.0,96106.0,5.20658124]
[1738871166401,0.38227965,96107.0,96106.0,5.20658124]
[1738871166572,0.38927965,96107.0,96106.0,5.20658124]
[1738871166779,0.38727965,96107.0,96106.0,5.20658124]
[1738871166940,0.38927965,96107.0,96106.0,5.20658124]
[1738871167300,0.53927965,96107.0,96106.0,5.20658124]
[1738871168686,0.53227965,96107.0,96106.0,5.20658124]
[1738871168897,0.53679304,96107.0,96106.0,5.20658124]
[1738871169073,0.54779304,96107.0,96106.0,5.20658124]
[1738871170372,0.54779304,96107.0,96106.0,5.18758124]
[1738871171012,0.54801754,96107.0,96106.0,5.18758124]
[1738871172445,0.54150415,96107.0,96106.0,5.18758124]
[1738871173018,0.56450415,96107.0,96106.0,5.14596124]
[1738871173220,0.56450415,96107.0,96106.0,5.06272124]
[1738871173610,0.381192,96097.0,96096.0,0.0001068]
[1738871173747,0.48369565,96097.0,96096.0,0.0001068]
[1738871175112,0.80909565,96097.0,96096.0,0.0001068]
[1738871175323,0.51269565,96097.0,96095.0,6.13353526]
[1738871175446,0.56899764,96096.0,96095.0,6.03128326]
[1738871175651,0.56899764,96096.0,96095.0,5.95318326]
[1738871175652,0.68769665,96096.0,96095.0,5.95318326]
[1738871175855,0.55909665,96096.0,96095.0,5.95318326]
[1738871176495,0.56909665,96096.0,96095.0,5.94818326]
[1738871176704,0.58109665,96096.0,96095.0,5.94818326]
[1738871176899,0.58109665,96096.0,96095.0,5.92737026]
[1738871177071,0.57109665,96096.0,96095.0,5.92737026]
[1738871177806,0.54809665,96096.0,96095.0,5.92737026]
[1738871177991,0.53609665,96096.0,96095.0,5.92737026]
[1738871178191,0.54009665,96096.0,96095.0,5.92737026]
[1738871178388,0.3786506,96096.0,96095.0,5.92737026]
[1738871178619,0.3876506,96096.0,96095.0,5.92737026]
[1738871178996,0.3059506,96096.0,96095.0,5.92737026]
[1738871179385,0.27159665,96096.0,96095.0,5.92737026]
[1738871179840,0.25859665,96096.0,96095.0,5.92737026]
[1738871180337,0.25859665,96096.0,96095.0,5.90837026]
[1738871181173,0.26159665,96096.0,96095.0,5.90837026]
[1738871181399,0.27059665,96096.0,96095.0,5.90837026]
[1738871181588,0.26759665,96096.0,96095.0,5.90837026]
[1738871181909,0.26059665,96096.0,96095.0,5.90837026]
[1738871182080,0.26759665,96096.0,96095.0,5.90837026]
[1738871182600,0.27659665,96096.0,96095.0,5.90837026]
[1738871182997,0.26759665,96096.0,96095.0,5.90837026]
[1738871183201,0.27259665,96096.0,96095.0,5.90837026]
[1738871183363,0.27259665,96096.0,96095.0,5.90847716]
[1738871184252,0.27582115,96096.0,96095.0,5.90847716]
[1738871184675,0.27282115,96096.0,96095.0,5.90847716]
[1738871184881,0.49922115,96096.0,96095.0,5.90847716]
[1738871185081,0.50122115,96096.0,96095.0,5.90847716]
[1738871185283,0.50122115,96096.0,96095.0,5.88947716]
[1738871185918,0.50122115,96096.0,96095.0,0.8692253]
[1738871186952,0.87372848,96096.0,96095.0,0.8067863]
[1738871187889,0.87824396,96096.0,96095.0,0.7027213]
[1738871188049,0.86424396,96096.0,96095.0,0.7027213]
[1738871188251,0.86724396,96096.0,96095.0,0.7027213]
[1738871188431,0.87624396,96096.0,96095.0,0.7027213]
[1738871188790,0.86424396,96096.0,96095.0,0.7027213]
[1738871188995,0.87024396,96096.0,96095.0,0.7027213]
[1738871189218,0.87924396,96096.0,96095.0,0.7027213]
[1738871189385,0.87024396,96096.0,96095.0,0.7027213]
[1738871189573,0.87924396,96096.0,96095.0,0.7027213]
[1738871190001,0.85624396,96096.0,96095.0,0.7027213]
[1738871190374,0.85024396,96096.0,96095.0,0.6837213]
[1738871190686,0.85424396,96096.0,96095.0,0.6837213]
[1738871192317,0.87724396,96096.0,96095.0,0.6837213]
[1738871194603,0.85424396,96096.0,96095.0,0.6837213]
[1738871195337,0.85424396,96096.0,96095.0,0.6647213]
[1738871196535,0.85024396,96096.0,96095.0,0.6647213]
[1738871196896,0.85424396,96096.0,96095.0,0.6647213]
[1738871197312,0.86824396,96096.0,96095.0,0.6647213]
[1738871197481,0.87724396,96096.0,96095.0,0.6230953]
[1738871197681,0.88766788,96096.0,96095.0,0.5814693]
[1738871197887,0.87466788,96096.0,96095.0,0.5606563]
[1738871198084,0.88766788,96096.0,96095.0,0.5606563]
[1738871198482,0.87866788,96096.0,96095.0,0.5606563]
[1738871198659,0.88766788,96096.0,96095.0,0.5606563]
[1738871198879,0.87866788,96096.0,96095.0,0.5606563]
[1738871199292,0.87724396,96096.0,96095.0,0.5606563]
[1738871199496,0.87324396,96096.0,96095.0,0.5606563]
[1738871199908,0.87924396,96096.0,96095.0,0.5606563]
[1738871200390,0.77384396,96096.0,96095.0,0.5416563]
[1738871200580,0.76484396,96096.0,96095.0,0.5416563]
[1738871200781,0.76884396,96096.0,96095.0,0.5416563]
[1738871200982,0.62784396,96096.0,96095.0,0.5416563]
[1738871201187,0.61484396,96096.0,96095.0,0.5416563]
[1738871201392,0.76984396,96096.0,96095.0,0.5416563]
[1738871201593,0.77884396,96096.0,96095.0,0.5416563]
[1738871201792,0.76984396,96096.0,96095.0,0.5416563]
[1738871202190,0.77884396,96096.0,96095.0,0.5416563]
[1738871202391,0.76984396,96096.0,96095.0,0.5416563]
[1738871202625,0.76484396,96096.0,96095.0,0.5416563]
[1738871202984,0.76784396,96096.0,96095.0,0.5416563]
[1738871203384,0.76484396,96096.0,96095.0,0.5416563]
[1738871203570,0.77526642,96096.0,96095.0,0.5416563]
[1738871203773,0.78726642,96096.0,96095.0,0.5416563]
[1738871205297,0.78726642,96096.0,96095.0,0.5226563]
[1738871205897,0.77684396,96096.0,96095.0,0.5226563]
[1738871206746,0.77384396,96096.0,96095.0,0.5226563]
[1738871206988,0.76784396,96096.0,96095.0,0.5226563]
[1738871207367,0.77684396,96096.0,96095.0,0.5226563]
[1738871207585,0.77384396,96096.0,96095.0,0.5226563]
[1738871207912,0.77684396,96096.0,96095.0,0.5226563]
[1738871209095,0.78726663,96096.0,96095.0,0.5226563]
[1738871210235,0.78726663,96096.0,96095.0,0.5036563]
[1738871210836,0.7581593,96096.0,96095.0,0.5036563]
[1738871211564,0.6081593,96096.0,96095.0,0.5036563]
[1738871211771,0.59773663,96096.0,96095.0,0.6320563]
[1738871212653,0.27733663,96096.0,96095.0,0.6320563]
[1738871214334,0.27733663,96096.0,96095.0,0.5526563]
[1738871215279,0.27733663,96096.0,96095.0,0.5336563]
[1738871219356,0.01873998,96096.0,96095.0,0.6897513]
[1738871219629,0.01873998,96096.0,96095.0,0.7668513]
[1738871220238,0.01573998,96096.0,96095.0,0.7668513]
[1738871220454,0.208061,96126.0,96095.0,0.7668513]
[1738871220455,0.0002245,96129.0,96096.0,0.15]
[1738871220610,0.0002245,96129.0,96106.0,0.280577]
[1738871221759,0.00168861,96107.0,96106.0,0.280577]
[1738871222819,0.00168861,96107.0,96106.0,0.1245]
[1738871223791,0.10319226,96107.0,96098.0,0.0752]
[1738871224005,0.31060665,96106.0,96098.0,0.0752]
[1738871224178,0.156084,96102.0,96098.0,0.0752]
[1738871224405,0.208105,96105.0,96098.0,0.0752]
[1738871224523,0.31060865,96105.0,96098.0,0.0752]
[1738871224724,0.156084,96102.0,96098.0,0.0752]
[1738871224924,0.00068861,96107.0,96099.0,0.156089]
[1738871225166,0.00068861,96107.0,96098.0,0.0752]
[1738871225167,0.00068861,96107.0,96100.0,0.156087]
[1738871225581,0.00068861,96107.0,96101.0,0.156085]
[1738871226384,0.00068861,96107.0,96098.0,0.0782]
[1738871226585,0.10250365,96106.0,96098.0,0.0782]
[1738871226972,0.10250365,96106.0,96098.0,0.0752]
[1738871227450,0.15608,96105.0,96100.0,0.001]
[1738871227791,0.364187,96104.0,96098.0,0.0752]
[1738871228000,0.00068861,96107.0,96098.0,0.0752]
[1738871228135,0.00068861,96107.0,96106.0,0.156077]
[1738871228331,0.00068861,96107.0,96106.0,0.1211]
[1738871229000,0.15676461,96107.0,96106.0,0.1211]
[1738871229401,0.156085,96101.0,96100.0,0.076]
[1738871229634,0.208107,96105.0,96097.0,0.0476]
[1738871229950,0.15609,96098.0,96097.0,0.0476]
[1738871230598,0.10250365,96098.0,96095.0,0.4846563]
[1738871230773,0.156093,96096.0,96095.0,0.4846563]
[1738871230912,0.25859665,96096.0,96095.0,0.4846563]
[1738871232183,0.26359665,96096.0,96095.0,0.4856563]
[1738871232519,0.2760183,96096.0,96095.0,0.4856563]
[1738871232789,0.2740183,96096.0,96095.0,0.4856563]
[1738871233191,0.2760183,96096.0,96095.0,0.4856563]
[1738871233421,0.2710183,96096.0,96095.0,0.4846563]
[1738871233754,0.28253185,96096.0,96095.0,0.4846563]
[1738871234396,0.28553185,96096.0,96095.0,0.4856563]
[1738871234677,0.28053185,96096.0,96095.0,0.4856563]
[1738871234935,0.28253185,96096.0,96095.0,0.4846563]
[1738871235175,0.36663185,96096.0,96095.0,0.4856563]
[1738871235425,0.50963185,96096.0,96095.0,0.4656563]
[1738871235681,0.51163185,96096.0,96095.0,0.4656563]
[1738871236178,0.50963185,96096.0,96095.0,0.4656563]
[1738871236446,0.51263185,96096.0,96095.0,0.4656563]
[1738871236960,0.51263185,96096.0,96095.0,0.41975136]
[1738871237208,0.51763185,96096.0,96095.0,0.41975136]
[1738871237466,0.51063185,96096.0,96095.0,0.41875136]
[1738871237703,0.51463185,96096.0,96095.0,0.41975136]
[1738871237942,0.51763185,96096.0,96095.0,0.41975136]
[1738871238190,0.50563185,96096.0,96095.0,0.41875136]
[1738871238421,0.51063185,96096.0,96095.0,0.41975136]
[1738871238910,0.51363185,96096.0,96095.0,0.41975136]
[1738871239149,0.50563185,96096.0,96095.0,0.41875136]
[1738871240321,0.50563185,96096.0,96095.0,0.39975136]
[1738871240536,0.51263185,96096.0,96095.0,0.39975136]
[1738871242463,0.53563185,96096.0,96095.0,0.29568636]
[1738871242668,0.53585635,96096.0,96095.0,0.29568636]
[1738871243613,0.36976335,96096.0,96095.0,0.29568636]
[1738871243967,0.52985635,96096.0,96095.0,0.29568636]
[1738871244142,0.46175635,96096.0,96095.0,0.29568636]
[1738871244346,0.50165635,96096.0,96095.0,0.29568636]
[1738871244523,0.51065635,96096.0,96095.0,0.29568636]
[1738871244734,0.51565635,96096.0,96095.0,0.29568636]
[1738871245131,0.50165635,96096.0,96095.0,0.29568636]
[1738871245351,0.53365635,96096.0,96095.0,0.13099236]
[1738871245541,0.53765635,96096.0,96095.0,0.08936436]
[1738871245765,0.52865635,96096.0,96095.0,0.08936436]
[1738871246208,0.57585635,96096.0,96095.0,0.08936436]
[1738871246906,0.58485635,96096.0,96095.0,0.08936436]
[1738871247206,0.156098,96093.0,96092.0,8e-07]
[1738871247402,0.15,96091.0,96042.0,0.0001068]
[1738871247615,0.40861665,96084.0,96053.0,0.0819]
[1738871248780,0.42555185,96084.0,96053.0,0.0819]
[1738871248977,0.54065185,96084.0,96083.0,6.01094393]
[1738871250041,0.54465185,96084.0,96083.0,6.01094393]
[1738871250238,0.53565185,96084.0,96083.0,5.99194393]
[1738871250377,0.56449082,96084.0,96083.0,5.88786893]
[1738871250828,0.56149082,96084.0,96083.0,5.88786893]
[1738871251023,0.62579082,96084.0,96083.0,5.88786893]
[1738871251240,0.61579082,96084.0,96083.0,5.88786893]
[1738871251575,0.62579082,96084.0,96083.0,5.78370429]
[1738871251702,0.61536917,96084.0,96083.0,5.78370429]
[1738871252106,0.61136917,96084.0,96083.0,5.78370429]
[1738871252491,0.61136917,96084.0,96083.0,5.70044429]
[1738871252930,0.62136917,96084.0,96083.0,5.67962929]
[1738871253341,0.61236917,96084.0,96083.0,5.63799929]
[1738871253547,0.62992917,96084.0,96083.0,5.57555429]
[1738871253757,0.62092917,96084.0,96083.0,5.57555429]
[1738871254094,0.63592917,96084.0,96083.0,5.57555429]
[1738871254306,0.63592917,96084.0,96083.0,5.55473929]
[1738871254432,0.62092917,96084.0,96083.0,5.51310929]
[1738871254630,0.62992917,96084.0,96083.0,5.49229429]
[1738871254943,0.62792917,96084.0,96083.0,5.47158619]
[1738871255167,0.62792917,96084.0,96083.0,4.47158619]
[1738871255367,0.62992917,96084.0,96083.0,4.45258619]
[1738871255567,0.64735633,96084.0,96083.0,4.39014119]
[1738871255819,0.64758083,96084.0,96083.0,4.34851119]
[1738871256399,0.64758083,96084.0,96083.0,4.29988119]
[1738871256744,0.64758083,96084.0,96083.0,4.25825119]
[1738871257230,0.63858083,96084.0,96083.0,4.23743619]
[1738871257386,0.64758083,96084.0,96083.0,4.19580619]
[1738871257731,0.64758083,96084.0,96083.0,4.17499119]
[1738871258247,0.64758083,96084.0,96083.0,4.15417619]
[1738871258477,0.64758083,96084.0,96083.0,4.13336119]
[1738871259707,0.64758083,96084.0,96051.0,0.00069021]
[1738871259708,0.64758083,96084.0,96072.0,1.88948808]
[1738871259709,0.22,96073.0,96072.0,1.88948808]
[1738871259915,0.6527,96061.0,96060.0,2.89497984]
[1738871260118,0.57233489,96038.0,96037.0,5.51304459]
[1738871260320,0.57233489,96038.0,96037.0,0.42352172]
[1738871260321,5.017886,96038.0,96037.0,0.42352172]
[1738871260493,0.676206,96027.0,96026.0,4.74467149]
[1738871260721,4.90461334,96027.0,96026.0,4.2924849]
[1738871260905,5.74836714,96027.0,96026.0,0.50587179]
[1738871261160,5.74836714,96027.0,96014.0,0.37844152]
[1738871261161,0.676225,96015.0,96014.0,0.37844152]
[1738871261373,0.676225,96015.0,95959.0,0.33304365]
[1738871261374,0.676243,96004.0,96003.0,5.00790948]
[1738871261577,1.038943,96004.0,96003.0,4.72178628]
[1738871261712,5.13895252,96004.0,96003.0,3.86450639]
[1738871261915,5.13895252,96004.0,96003.0,3.06203111]
[1738871261916,5.19932152,96004.0,96003.0,3.06203111]
[1738871262096,5.19932152,96004.0,96003.0,2.97794394]
[1738871262097,5.39813572,96004.0,96003.0,2.97794394]
[1738871262487,5.35770223,96004.0,96003.0,1.90505979]
[1738871262696,5.35770223,96004.0,96003.0,1.87397013]
[1738871262697,5.34770223,96004.0,96003.0,1.87397013]
[1738871262911,5.34770223,96004.0,95937.0,0.08]
[1738871262912,0.02,96001.0,96000.0,0.25200197]
[1738871263112,0.376263,95992.0,95991.0,4.62368266]
[1738871263315,1.7010697,95992.0,95991.0,4.60010621]
[1738871263568,2.3716997,95992.0,95991.0,3.88311583]
[1738871263788,5.5926507,95992.0,95991.0,3.84683252]
[1738871263997,5.69515435,95992.0,95991.0,3.83183252]
[1738871264216,5.36271735,95992.0,95991.0,3.83183252]
[1738871264426,5.10992933,95992.0,95991.0,3.72765752]
[1738871264642,5.20992933,95992.0,95991.0,3.72765752]
[1738871264842,5.20704935,95992.0,95991.0,3.72765752]
[1738871265191,4.10591206,95992.0,95991.0,3.7211255]
[1738871265397,2.08094306,95992.0,95991.0,3.70093519]
[1738871265597,2.05630106,95992.0,95991.0,3.70093519]
[1738871265801,2.05630106,95992.0,95991.0,3.68193519]
[1738871266042,2.18858106,95992.0,95991.0,3.61034719]
[1738871266353,2.18858106,95992.0,95991.0,3.40394961]
[1738871266498,2.19758106,95992.0,95991.0,3.36227961]
[1738871267020,2.06858106,95992.0,95991.0,3.36227961]
[1738871267369,1.17574406,95992.0,95991.0,3.36227961]
[1738871267550,0.80133736,95992.0,95991.0,3.36227961]
[1738871267906,0.81033736,95992.0,95991.0,3.36227961]
[1738871268119,0.78846383,95992.0,95991.0,3.36227961]
[1738871268318,0.68596018,95992.0,95991.0,3.36227961]
[1738871268528,0.55157071,95992.0,95991.0,3.36238651]
[1738871269125,0.42964195,95992.0,95991.0,3.40868651]
[1738871269336,0.42964195,95992.0,95991.0,3.42918234]
[1738871269337,0.31298589,95992.0,95991.0,3.42918234]
[1738871269750,0.30398589,95992.0,95991.0,3.42909266]
[1738871270172,0.30898589,95992.0,95991.0,3.42909266]
[1738871270371,0.30298589,95992.0,95991.0,3.41009266]
[1738871270736,0.30898589,95992.0,95991.0,3.41009266]
[1738871270960,0.30598589,95992.0,95991.0,3.41009266]
[1738871271181,0.28277589,95992.0,95991.0,3.41009266]
[1738871271382,0.27677589,95992.0,95991.0,3.41009266]
[1738871271787,0.28077589,95992.0,95991.0,3.41009266]
[1738871272829,0.28277589,95992.0,95991.0,3.41009266]
[1738871273031,0.20312118,95992.0,95991.0,3.41009266]
[1738871273241,0.19848769,95992.0,95991.0,3.41009266]
[1738871273637,0.15991169,95992.0,95991.0,3.41009266]
[1738871274226,0.12015569,95992.0,95991.0,3.56635666]
[1738871274439,0.12015569,95992.0,95991.0,3.41009266]
[1738871275141,0.09795569,95992.0,95991.0,3.41009266]
[1738871275344,0.09795569,95992.0,95991.0,3.39109266]
[1738871276175,0.20045934,95992.0,95991.0,3.39109266]
[1738871276539,0.35045934,95992.0,95991.0,3.34479266]
[1738871276683,0.35045934,95992.0,95991.0,3.32429683]
[1738871276885,0.50672234,95992.0,95991.0,3.32429683]
[1738871277497,0.50072234,95992.0,95991.0,3.32429683]
[1738871277723,0.50872234,95992.0,95991.0,3.32429683]
[1738871277922,0.51272234,95992.0,95991.0,3.32429683]
[1738871280109,0.51294705,95992.0,95991.0,3.32429683]
[1738871280308,0.51294705,95992.0,95991.0,3.30529683]
[1738871282342,0.50894705,95992.0,95991.0,3.30529683]
[1738871282836,0.51294705,95992.0,95991.0,3.30529683]
[1738871283266,0.50894705,95992.0,95991.0,3.26352282]
[1738871283497,1.32091605,95992.0,95991.0,3.18018282]
[1738871283646,2.11729605,95992.0,95991.0,3.18018282]
[1738871283847,2.11729605,95992.0,95991.0,3.1747607]
[1738871283848,2.37291405,95992.0,95991.0,3.1747607]
[1738871284217,2.47661405,95992.0,95991.0,3.1747607]
[1738871284590,2.48561405,95992.0,95991.0,3.00441347]
[1738871284764,2.47661405,95992.0,95991.0,3.00441347]
[1738871284976,2.62558105,95992.0,95991.0,3.00441347]
[1738871285171,2.63458105,95992.0,95991.0,3.00441347]
[1738871285442,2.73528105,95992.0,95991.0,2.90207347]
[1738871285622,2.73528105,95992.0,95991.0,2.88123847]
[1738871285818,2.73528105,95992.0,95991.0,2.88054064]
[1738871286060,2.74228105,95992.0,95991.0,2.88054064]
[1738871286404,2.73528105,95992.0,95991.0,2.83887064]
[1738871286709,2.74428105,95992.0,95991.0,2.79720064]
[1738871286908,2.75328105,95992.0,95991.0,2.77636564]
[1738871287148,2.73528105,95992.0,95991.0,2.77636564]
[1738871287347,2.73528105,95992.0,95991.0,2.73469564]
[1738871287558,2.75328105,95992.0,95991.0,2.59409064]
[1738871287729,2.78397088,95992.0,95991.0,2.59409064]
[1738871287912,2.74968811,95992.0,95991.0,2.59409064]
[1738871288112,2.33998811,95992.0,95991.0,2.59409064]
[1738871288318,2.35766811,95992.0,95991.0,2.59409064]
[1738871288524,0.176267,95989.0,95988.0,0.0005]
[1738871288727,3.89050615,95989.0,95988.0,0.0005]
[1738871288987,0.69985199,95989.0,95988.0,0.0005]
[1738871289146,3.91220299,95989.0,95988.0,0.0005]
[1738871289345,0.93598,95981.0,95980.0,5.36982335]
[1738871289547,5.5638281,95981.0,95980.0,5.36982335]
[1738871289917,5.5638281,95981.0,95964.0,0.00045848]
[1738871289918,5.5638281,95981.0,95968.0,3.44778635]
[1738871289919,0.6297,95969.0,95968.0,3.44778635]
[1738871290234,0.6297,95969.0,95968.0,1.54305288]
[1738871290235,4.81980837,95969.0,95968.0,1.54305288]
[1738871290342,4.56182477,95969.0,95968.0,0.44369827]
[1738871290550,4.53921471,95969.0,95968.0,0.02613773]
[1738871290755,4.78506042,95969.0,95968.0,0.02613773]
[1738871290974,4.78506042,95969.0,95937.0,0.08334071]
[1738871290975,0.726318,95958.0,95957.0,5.18332115]
[1738871291172,4.9171313,95958.0,95957.0,5.06186059]
[1738871291426,5.35250752,95958.0,95957.0,4.91967316]
[1738871291602,3.80457044,95958.0,95957.0,4.59089669]
[1738871291804,6.57007444,95958.0,95957.0,4.51673863]
[1738871292004,6.53305348,95958.0,95957.0,4.51684563]
[1738871292230,6.4231615,95958.0,95957.0,4.51684563]
[1738871292386,6.46837727,95958.0,95957.0,4.41263063]
[1738871293030,6.44010221,95958.0,95957.0,4.41254093]
[1738871293450,6.48637727,95958.0,95957.0,4.30832593]
[1738871293683,6.50863052,95958.0,95957.0,4.26379866]
[1738871293890,6.45810221,95958.0,95957.0,4.04818338]
[1738871294043,3.78452827,95958.0,95957.0,3.2402546]
[1738871294247,3.84359177,95958.0,95957.0,2.6154116]
[1738871294657,3.83459177,95958.0,95957.0,2.27273538]
[1738871295154,3.81257852,95958.0,95957.0,2.27208092]
[1738871295305,3.79457852,95958.0,95957.0,2.23223792]
[1738871295514,3.82559177,95958.0,95957.0,2.1102879]
[1738871295725,3.80307171,95958.0,95957.0,2.04944141]
[1738871295888,3.80307171,95958.0,95957.0,2.00243207]
[1738871296105,3.82059541,95958.0,95957.0,1.97110755]
[1738871296304,3.82059541,95958.0,95957.0,1.92942155]
[1738871296619,2.96239541,95958.0,95957.0,1.86689255]
[1738871296853,2.96239541,95958.0,95957.0,1.86332935]
[1738871297046,2.96239541,95958.0,95957.0,1.65123005]
[1738871297219,3.33027166,95958.0,95957.0,0.39657192]
[1738871297421,0.576337,95946.0,95945.0,5.09218249]
[1738871297624,1.23914088,95946.0,95945.0,4.40630038]
[1738871297825,1.71126088,95946.0,95945.0,4.40630038]
[1738871298072,3.77500988,95946.0,95945.0,4.40630038]
[1738871298287,3.92500988,95946.0,95945.0,4.40630038]
[1738871298489,3.92500988,95946.0,95945.0,4.32292038]
[1738871298778,3.53697688,95946.0,95945.0,4.30207538]
[1738871298918,3.68697688,95946.0,95945.0,4.30207538]
[1738871299121,3.75499462,95946.0,95945.0,4.30207538]
[1738871299318,3.75499462,95946.0,95945.0,4.18123038]
[1738871299697,3.73591759,95946.0,95945.0,4.09785038]
[1738871299904,3.76399462,95946.0,95945.0,4.09785038]
[1738871300094,3.99302762,95946.0,95945.0,4.09395038]
[1738871300302,3.97902762,95946.0,95945.0,4.03326038]
[1738871300508,3.95995059,95946.0,95945.0,3.97072538]
[1738871300686,3.96395059,95946.0,95945.0,3.97072538]
[1738871300883,3.97395059,95946.0,95945.0,3.97072538]
[1738871301137,3.97295059,95946.0,95945.0,3.97072538]
[1738871301455,3.96352343,95946.0,95945.0,3.90819038]
[1738871301652,3.95480343,95946.0,95945.0,3.86650038]
[1738871301890,3.96352343,95946.0,95945.0,3.86650038]
[1738871302248,3.97252343,95946.0,95945.0,3.86650038]
[1738871302441,3.96352343,95946.0,95945.0,3.78312038]
[1738871302642,4.02063038,95946.0,95945.0,3.76227538]
[1738871302844,4.02963038,95946.0,95945.0,3.75508905]
[1738871303210,4.02963038,95946.0,95945.0,3.65078905]
[1738871303395,4.00060046,95946.0,95945.0,3.54667105]
[1738871303600,4.02063038,95946.0,95945.0,3.54667105]
[1738871303952,4.00167038,95946.0,95945.0,3.54667105]
[1738871304291,4.02067038,95946.0,95945.0,3.54667105]
[1738871304511,3.99164046,95946.0,95945.0,3.50498105]
[1738871304709,3.95356343,95946.0,95945.0,3.44244605]
[1738871304864,3.97156343,95946.0,95945.0,3.44244605]
[1738871305202,3.81346454,95946.0,95945.0,3.44244605]
[1738871305405,3.80446454,95946.0,95945.0,3.36091105]
[1738871305629,3.81346454,95946.0,95945.0,3.34006605]
[1738871305751,3.82246454,95946.0,95945.0,3.31890766]
[1738871305953,3.96246454,95946.0,95945.0,3.31890766]
[1738871306264,3.95346454,95946.0,95945.0,3.31890766]
[1738871306490,3.82246454,95946.0,95945.0,3.27721766]
[1738871306810,1.87341854,95946.0,95945.0,3.21468266]
[1738871306966,1.81859254,95946.0,95945.0,3.21468266]
[1738871307396,1.09366054,95946.0,95945.0,3.21468266]
[1738871307721,1.09366054,95946.0,95945.0,3.13130266]
[1738871307918,1.08466054,95946.0,95945.0,3.11045766]
[1738871308083,0.96596054,95946.0,95945.0,3.11045766]
[1738871308283,0.97516054,95946.0,95945.0,3.11045766]
[1738871308538,0.98396054,95946.0,95945.0,3.11045766]
[1738871308708,0.87270878,95946.0,95945.0,3.11045766]
[1738871309011,1.02270878,95946.0,95945.0,3.11045766]
[1738871309185,1.03170878,95946.0,95945.0,3.11045766]
[1738871309385,1.13260878,95946.0,95945.0,3.11045766]
[1738871310267,1.13260878,95946.0,95945.0,3.09145766]
[1738871310439,1.13260878,95946.0,95945.0,2.98723266]
[1738871310817,1.12360878,95946.0,95945.0,2.98723266]
[1738871311184,1.00199878,95946.0,95945.0,2.98723266]
[1738871311373,1.00199878,95946.0,95945.0,2.90385266]
[1738871311374,3.53002178,95946.0,95945.0,2.90385266]
[1738871311580,3.53902178,95946.0,95945.0,2.88300766]
[1738871311873,3.52102178,95946.0,95945.0,2.88300766]
[1738871312106,3.21527678,95946.0,95945.0,2.88300766]
[1738871312282,2.53826978,95946.0,95945.0,2.88300766]
[1738871312419,2.50743578,95946.0,95945.0,2.79962766]
[1738871312620,2.50743578,95946.0,95945.0,2.77878266]
[1738871312823,2.52523578,95946.0,95945.0,2.77878266]
[1738871313029,2.51623578,95946.0,95945.0,2.77878266]
[1738871313231,2.52523578,95946.0,95945.0,2.77878266]
[1738871313446,2.52523578,95946.0,95945.0,2.73709266]
[1738871313672,2.52523578,95946.0,95945.0,2.67455766]
[1738871313917,2.82523578,95946.0,95945.0,2.67455766]
[1738871314237,2.81643578,95946.0,95945.0,2.67455766]
[1738871314470,1.92306578,95946.0,95945.0,2.64823266]
[1738871314683,1.44506578,95946.0,95945.0,2.64823266]
[1738871314887,1.35738278,95946.0,95945.0,2.64823266]
[1738871315078,1.15491878,95946.0,95945.0,2.64823266]
[1738871315200,1.60614349,95946.0,95945.0,2.62923266]
[1738871315400,1.61614349,95946.0,95945.0,2.46795266]
[1738871315717,1.62514349,95946.0,95945.0,2.44679432]
[1738871316360,1.63414349,95946.0,95945.0,2.38425932]
[1738871316520,1.62514349,95946.0,95945.0,2.34256932]
[1738871317175,1.61514349,95946.0,95945.0,2.34256932]
[1738871317374,1.61514349,95946.0,95945.0,2.32172432]
[1738871317577,1.59614349,95946.0,95945.0,2.25918932]
[1738871317783,1.60614349,95946.0,95945.0,2.23834432]
[1738871317986,1.30534349,95946.0,95945.0,2.23834432]
[1738871318183,1.30514349,95946.0,95945.0,2.23834432]
[1738871318391,1.29614349,95946.0,95945.0,2.23834432]
[1738871318595,1.31414349,95946.0,95945.0,2.23834432]
[1738871318796,1.30514349,95946.0,95945.0,2.23834432]
[1738871319026,1.30514349,95946.0,95945.0,2.21749932]
[1738871319151,1.30514349,95946.0,95945.0,2.13411932]
[1738871319152,1.2881867,95946.0,95945.0,2.13411932]
[1738871319362,1.3250917,95946.0,95945.0,2.13411932]
[1738871319589,1.3162917,95946.0,95945.0,2.13411932]
[1738871319822,0.6155667,95946.0,95945.0,2.26271932]
[1738871319999,0.2404778,95946.0,95945.0,2.26271932]
[1738871320403,0.2404778,95946.0,95945.0,2.24371932]
[1738871320829,0.2314778,95946.0,95945.0,2.24371932]
[1738871321176,0.2404778,95946.0,95945.0,2.24371932]
[1738871321375,0.2494778,95946.0,95945.0,2.24371932]
[1738871321531,0.2314778,95946.0,95945.0,2.24371932]
[1738871321992,0.49898145,95946.0,95945.0,2.24371932]
[1738871322120,0.85543655,95946.0,95945.0,2.24371932]
[1738871322337,0.84943655,95946.0,95945.0,2.24371932]
[1738871322534,0.85843655,95946.0,95945.0,2.24371932]
[1738871322731,0.86319655,95946.0,95945.0,2.24371932]
[1738871323042,0.7696929,95946.0,95945.0,2.24371932]
[1738871323244,0.3954778,95946.0,95945.0,2.24371932]
[1738871323466,0.49798145,95946.0,95945.0,2.24371932]
[1738871323874,0.49298145,95946.0,95945.0,2.24371932]
[1738871324287,0.49998145,95946.0,95945.0,2.24371932]
[1738871324665,0.49298145,95946.0,95945.0,2.24371932]
[1738871325075,0.49098145,95946.0,95945.0,2.24371932]
[1738871325280,0.49998145,95946.0,95945.0,2.22471932]
[1738871325477,0.49298145,95946.0,95945.0,2.22471932]
[1738871325882,0.49998145,95946.0,95945.0,2.22471932]
[1738871326227,0.3884778,95946.0,95945.0,2.22471932]
[1738871326379,0.09123969,95946.0,95945.0,2.22471932]
[1738871326750,0.23857669,95946.0,95945.0,2.22471932]
[1738871327265,0.24757669,95946.0,95945.0,2.22471932]
[1738871327685,0.24057669,95946.0,95945.0,2.22371932]
[1738871328115,0.49808034,95946.0,95945.0,2.22371932]
[1738871328323,1.41041934,95946.0,95945.0,2.22371932]
[1738871328568,1.44509234,95946.0,95945.0,2.22371932]
[1738871328959,1.15334834,95946.0,95945.0,2.22371932]
[1738871329128,1.14434834,95946.0,95945.0,2.22371932]
[1738871329473,1.15334834,95946.0,95945.0,2.22371932]
[1738871329862,1.16234834,95946.0,95945.0,2.22371932]
[1738871330063,1.16234834,95946.0,95945.0,2.09511932]
[1738871330064,1.26604834,95946.0,95945.0,2.09511932]
[1738871330393,1.27304834,95946.0,95945.0,2.07611932]
[1738871330727,1.01989734,95946.0,95945.0,2.07611932]
[1738871331173,1.12959734,95946.0,95945.0,1.97189432]
[1738871331373,1.12959734,95946.0,95945.0,1.86766932]
[1738871331900,1.13959734,95946.0,95945.0,1.86766932]
[1738871332080,1.14959734,95946.0,95945.0,1.86766932]